fUSD/lending_fUSD_20250107
["ID","MTS","AMOUNT","RATE_DAILY","PERIOD"]
[348062306,1736290238847,-500.0,9.004e-05,2]
[348062308,1736290238856,-500.0,9.004e-05,2]
[348062310,1736290238866,-500.0,9.004e-05,2]
[348062311,1736290238875,-500.0,9.004e-05,2]
[348062313,1736290238885,-500.0,9.004e-05,2]
[348062315,1736290238894,-1522.1,9.004e-05,2]
[348062318,1736290238906,-1006.5,9.004e-05,2]
[348062320,1736290238915,-500.0,9.004e-05,2]
[348062322,1736290238924,-4588.54,9.004e-05,2]
[348062324,1736290238933,-500.0,9.004e-05,2]
[348062325,1736290238943,-552.23,9.004e-05,2]
[348062327,1736290238952,-500.0,9.004e-05,2]
[348062330,1736290238962,-500.0,9.004e-05,2]
[348062332,1736290238972,-500.0,9.004e-05,2]
[348062333,1736290238981,-627.12,9.004e-05,2]
[348062336,1736290238991,-189.73375683,9.004e-05,2]
[348062337,1736290239000,-3709.51,9.004e-05,2]
[348062339,1736290239009,-500.0,9.004e-05,2]
[348062342,1736290239019,-500.0,9.004e-05,2]
[348062343,1736290239029,-500.0,9.004e-05,2]
[348062346,1736290239039,-551.69,9.004e-05,2]
[348062348,1736290239049,-500.0,9.004e-05,2]
[348062350,1736290239058,-500.0,9.004e-05,2]
[348062352,1736290239068,-564.59,9.004e-05,2]
[348062354,1736290239077,-500.0,9.004e-05,2]
[348062356,1736290239086,-500.0,9.004e-05,2]
[348062358,1736290239095,-300.0,9.004e-05,2]
[348062360,1736290239104,-500.0,9.004e-05,2]
[348062362,1736290239113,-500.66757515,9.004e-05,2]
[348062364,1736290239123,-586.55,9.004e-05,2]
[348062366,1736290239133,-500.0,9.004e-05,2]
[348062368,1736290239142,-526.38,9.004e-05,2]
[348062369,1736290239151,-500.0,9.004e-05,2]
[348062371,1736290239161,-500.0,9.004e-05,2]
[348062373,1736290239171,-500.0,9.004e-05,2]
[348062375,1736290239180,-500.0,9.004e-05,2]
[348062378,1736290239190,-500.0,9.004e-05,2]
[348062380,1736290239199,-500.0,9.004e-05,2]
[348062381,1736290239209,-500.0,9.004e-05,2]
[348062383,1736290239219,-500.0,9.004e-05,2]
[348062385,1736290239228,-500.0,9.004e-05,2]
[348062388,1736290239238,-500.0,9.004e-05,2]
[348062389,1736290239247,-768.22,9.004e-05,2]
[348062392,1736290239257,-500.0,9.004e-05,2]
[348062393,1736290239266,-1607.22,9.004e-05,2]
[348062395,1736290239275,-500.0,9.004e-05,2]
[348062397,1736290239284,-520.1,9.004e-05,2]
[348062399,1736290239295,-1834.97,9.004e-05,2]
[348062402,1736290239304,-500.0,9.004e-05,2]
[348062403,1736290239314,-500.0,9.004e-05,2]
[348062405,1736290239323,-500.0,9.004e-05,2]
[348062407,1736290239332,-500.0,9.004e-05,2]
[348062409,1736290239344,-500.0,9.004e-05,2]
[348062411,1736290239353,-1189.26,9.004e-05,2]
[348062413,1736290239362,-398.51987573,9.004e-05,2]
[348062415,1736290239375,-101.48012427,9.004e-05,2]
[348062417,1736290239385,-578.09,9.004e-05,2]
[348062419,1736290239396,-579.53775288,9.081e-05,2]
[348062422,1736290239407,-2026.65877865,9.081e-05,2]
[348062424,1736290239419,-2393.80346847,9.081e-05,2]
[348062426,1736290239428,-797.72,9.137e-05,2]
[348062428,1736290239438,-2828.93415795,9.137e-05,2]
[348062430,1736290239449,-699.10584205,9.137e-05,2]
[348062432,1736290239458,-1276.55,9.137e-05,2]
[348062434,1736290239467,-2824.34415795,9.137e-05,2]
[348062437,1736290239487,-233.20584205,9.137e-05,2]
[348062439,1736290239496,-766.7865513,9.137e-05,2]
[348062441,1736290239508,-7168.4234487,9.137e-05,2]
[348062443,1736290239518,-500.0,9.137e-05,2]
[348062445,1736290239528,-920.79,9.137e-05,2]
[348062447,1736290239537,-1588.01,9.137e-05,2]
[348062449,1736290239547,-2769.15,9.137e-05,2]
[348062451,1736290239556,-500.0,9.137e-05,2]
[348062453,1736290239565,-5146.02,9.137e-05,2]
[348062455,1736290239575,-1860.59,9.137e-05,2]
[348062456,1736290239584,-500.0,9.137e-05,2]
[348062459,1736290239594,-2177.16,9.137e-05,2]
[348062460,1736290239603,-1293.55,9.137e-05,2]
[348062462,1736290239612,-4623.61,9.137e-05,2]
[348062464,1736290239621,-2142.04,9.137e-05,2]
[348062466,1736290239631,-1965.94,9.137e-05,2]
[348062468,1736290239640,-2185.97,9.137e-05,2]
[348062470,1736290239649,-500.0,9.137e-05,2]
[348062472,1736290239658,-946.04,9.137e-05,2]
[348062474,1736290239667,-3004.29,9.137e-05,2]
[348062476,1736290239677,-500.0,9.137e-05,2]
[348062478,1736290239686,-500.0,9.137e-05,2]
[348062480,1736290239696,-1147.28,9.137e-05,2]
[348062482,1736290239706,-1015.36,9.137e-05,2]
[348062484,1736290239715,-500.0,9.137e-05,2]
[348062486,1736290239725,-1034.35,9.137e-05,2]
[348062488,1736290239735,-564.54,9.137e-05,2]
[348062490,1736290239745,-500.0,9.137e-05,2]
[348062492,1736290239755,-500.0,9.137e-05,2]
[348062493,1736290239764,-2088.64,9.137e-05,2]
[348062494,1736290239774,-531.39,9.138e-05,2]
[348062495,1736290239783,-14802.73,9.138e-05,2]
[348062496,1736290239793,-298.31,9.138e-05,2]
[348062497,1736290239803,-587.31,9.138e-05,2]
[348062498,1736290239812,-14644.03,9.138e-05,2]
[348062499,1736290239822,-9815.73,9.138e-05,2]
[348062500,1736290239831,-1000.0,9.138e-05,2]
[348062501,1736290239841,-339.66663912,9.18e-05,2]
[348062502,1736290239850,-500.0,9.18e-05,2]
[348062503,1736290239860,-500.0,9.18e-05,2]
[348062504,1736290239869,-500.0,9.18e-05,2]
[348062505,1736290239879,-500.0,9.18e-05,2]
[348062506,1736290239888,-500.0,9.18e-05,2]
[348062507,1736290239899,-500.0,9.18e-05,2]
[348062509,1736290239909,-500.0,9.18e-05,2]
[348062511,1736290239919,-505.84,9.18e-05,2]
[348062513,1736290239929,-500.0,9.18e-05,2]
[348062515,1736290239939,-500.0,9.18e-05,2]
[348062517,1736290239948,-611.18,9.18e-05,2]
[348062519,1736290239958,-500.0,9.18e-05,2]
[348062521,1736290239967,-183.23971652,9.18e-05,2]
[348062524,1736290239979,-359.63028348,9.18e-05,2]
[348062526,1736290239989,-23.08853075,9.18e-05,2]
[348062529,1736290240000,-476.91146925,9.18e-05,2]
[348062532,1736290240010,-199.56702894,9.18e-05,2]
[348062534,1736290240021,-300.43297106,9.18e-05,2]
[348062536,1736290240032,-25.81702594,9.18e-05,2]
[348062539,1736290240043,-425.99999,9.18e-05,2]
[348062540,1736290240062,-48.18298406,9.18e-05,2]
[348062541,1736290240072,-500.0,9.18e-05,2]
[348062542,1736290240081,-500.0,9.18e-05,2]
[348062543,1736290240091,-500.0,9.18e-05,2]
[348062544,1736290240100,-538.95,9.18e-05,2]
[348062545,1736290240110,-500.0,9.18e-05,2]
[348062546,1736290240120,-500.0,9.18e-05,2]
[348062547,1736290240129,-500.0,9.18e-05,2]
[348062548,1736290240138,-500.0,9.18e-05,2]
[348062549,1736290240148,-310.49,9.18e-05,2]
[348062550,1736290240158,-500.0,9.18e-05,2]
[348062551,1736290240168,-500.0,9.18e-05,2]
[348062552,1736290240178,-460.12015531,9.18e-05,2]
[348062553,1736290240191,-39.87984469,9.18e-05,2]
[348062554,1736290240200,-500.0,9.18e-05,2]
[348062555,1736290240210,-636.56,9.18e-05,2]
[348062556,1736290240219,-500.0,9.18e-05,2]
[348062557,1736290240228,-627.49,9.18e-05,2]
[348062558,1736290240237,-500.0,9.18e-05,2]
[348062559,1736290240247,-717.74,9.18e-05,2]
[348062560,1736290240256,-500.0,9.18e-05,2]
[348062561,1736290240265,-500.0,9.18e-05,2]
[348062562,1736290240275,-500.0,9.18e-05,2]
[348062563,1736290240284,-500.0,9.18e-05,2]
[348062564,1736290240294,-500.0,9.18e-05,2]
[348062565,1736290240304,-500.0,9.18e-05,2]
[348062566,1736290240313,-500.0,9.18e-05,2]
[348062567,1736290240322,-199.34,9.18e-05,2]
[348062568,1736290240332,-500.0,9.18e-05,2]
[348062569,1736290240346,-500.0,9.181e-05,2]
[348062570,1736290240355,-500.0,9.181e-05,2]
[348062571,1736290240365,-500.0,9.181e-05,2]
[348062572,1736290240375,-500.0,9.181e-05,2]
[348062573,1736290240387,-500.0,9.181e-05,2]
[348062574,1736290240397,-502.24241625,9.181e-05,2]
[348062575,1736290240406,-501.61989621,9.181e-05,2]
[348062576,1736290240417,-918.23,9.181e-05,2]
[348062577,1736290240428,-501.70672907,9.181e-05,2]
[348062578,1736290240438,-730.29,9.181e-05,2]
[348062579,1736290240448,-501.81930994,9.181e-05,2]
[348062580,1736290240458,-500.0,9.181e-05,2]
[348062582,1736290240468,-501.31719963,9.181e-05,2]
[348062583,1736290240479,-500.0,9.181e-05,2]
[348062584,1736290240489,-500.0,9.181e-05,2]
[348062585,1736290240499,-501.40142321,9.181e-05,2]
[348062586,1736290240509,-500.0,9.181e-05,2]
[348062587,1736290240519,-1236.68,9.181e-05,2]
[348062588,1736290240529,-500.0,9.181e-05,2]
[348062589,1736290240539,-500.0,9.181e-05,2]
[348062590,1736290240549,-500.0,9.181e-05,2]
[348062591,1736290240558,-889.86,9.181e-05,2]
[348062592,1736290240568,-500.0,9.181e-05,2]
[348062593,1736290240578,-1169.42,9.181e-05,2]
[348062594,1736290240587,-500.0,9.181e-05,2]
[348062595,1736290240597,-500.0,9.181e-05,2]
[348062596,1736290240607,-638.18,9.181e-05,2]
[348062597,1736290240618,-500.0,9.181e-05,2]
[348062598,1736290240628,-526.57,9.181e-05,2]
[348062599,1736290240637,-500.0,9.181e-05,2]
[348062600,1736290240647,-500.0,9.181e-05,2]
[348062601,1736290240657,-501.36670722,9.181e-05,2]
[348062602,1736290240667,-621.31,9.181e-05,2]
[348062603,1736290240676,-500.0,9.181e-05,2]
[348062604,1736290240686,-500.0,9.181e-05,2]
[348062605,1736290240696,-500.0,9.181e-05,2]
[348062606,1736290240705,-500.0,9.181e-05,2]
[348062607,1736290240715,-527.28,9.181e-05,2]
[348062608,1736290240725,-953.02,9.181e-05,2]
[348062609,1736290240735,-500.0,9.181e-05,2]
[348062610,1736290240746,-500.0,9.181e-05,2]
[348062611,1736290240755,-500.0,9.181e-05,2]
[348062612,1736290240764,-500.0,9.181e-05,2]
[348062613,1736290240774,-500.0,9.181e-05,2]
[348062614,1736290240783,-500.0,9.181e-05,2]
[348062615,1736290240793,-500.44,9.181e-05,2]
[348062616,1736290240803,-880.01,9.181e-05,2]
[348062617,1736290240812,-500.0,9.181e-05,2]
[348062618,1736290240822,-500.0,9.181e-05,2]
[348062619,1736290240832,-500.0,9.181e-05,2]
[348062620,1736290240842,-500.0,9.181e-05,2]
[348062621,1736290240852,-630.14312637,9.181e-05,2]
[348062622,1736290240862,-500.0,9.181e-05,2]
[348062623,1736290240871,-500.0,9.181e-05,2]
[348062624,1736290240881,-404.0531307,9.181e-05,2]
[348062625,1736290240891,-500.0,9.181e-05,2]
[348062626,1736290240901,-500.0,9.181e-05,2]
[348062627,1736290240910,-500.0,9.181e-05,2]
[348062628,1736290240920,-989.14,9.181e-05,2]
[348062629,1736290240929,-500.0,9.181e-05,2]
[348062630,1736290240939,-500.0,9.181e-05,2]
[348062631,1736290240949,-619.42,9.181e-05,2]
[348062632,1736290240958,-1041.11,9.181e-05,2]
[348062633,1736290240968,-500.0,9.181e-05,2]
[348062634,1736290240978,-500.0,9.181e-05,2]
[348062635,1736290240987,-500.0,9.181e-05,2]
[348062636,1736290240997,-500.0,9.181e-05,2]
[348062637,1736290241007,-500.0,9.181e-05,2]
[348062638,1736290241016,-500.0,9.181e-05,2]
[348062639,1736290241027,-500.60989328,9.181e-05,2]
[348062640,1736290241037,-500.0,9.181e-05,2]
[348062641,1736290241046,-500.0,9.181e-05,2]
[348062642,1736290241056,-500.0,9.181e-05,2]
[348062643,1736290241066,-500.0,9.181e-05,2]
[348062644,1736290241076,-378.66583148,9.181e-05,2]
[348062645,1736290241085,-1191.41,9.181e-05,2]
[348062646,1736290241095,-508.66039595,9.181e-05,2]
[348062647,1736290241105,-500.0,9.181e-05,2]
[348062648,1736290241256,-595.77,9.181e-05,2]
[348062649,1736290241286,-500.0,9.181e-05,2]
[348062650,1736290241295,-647.97972262,9.181e-05,2]
[348062651,1736290241305,-500.0,9.181e-05,2]
[348062652,1736290241314,-586.75,9.181e-05,2]
[348062653,1736290241323,-340.65300167,9.181e-05,2]
[348062654,1736290241333,-500.0,9.181e-05,2]
[348062655,1736290241345,-500.0,9.181e-05,2]
[348062656,1736290241358,-517.67399898,9.181e-05,2]
[348062657,1736290241367,-1060.23,9.181e-05,2]
[348062658,1736290241376,-500.0,9.181e-05,2]
[348062659,1736290241386,-500.0,9.181e-05,2]
[348062660,1736290241396,-500.0,9.181e-05,2]
[348062661,1736290241406,-500.0,9.181e-05,2]
[348062662,1736290241417,-660.8,9.181e-05,2]
[348062663,1736290241426,-500.0,9.181e-05,2]
[348062664,1736290241437,-502.09,9.181e-05,2]
[348062665,1736290241448,-500.0,9.181e-05,2]
[348062666,1736290241457,-500.0,9.181e-05,2]
[348062667,1736290241466,-954.95,9.181e-05,2]
[348062668,1736290241476,-500.0,9.181e-05,2]
[348062669,1736290241485,-500.0,9.181e-05,2]
[348062670,1736290241496,-512.5,9.181e-05,2]
[348062671,1736290241506,-1110.2,9.181e-05,2]
[348062672,1736290241515,-556.46,9.181e-05,2]
[348062673,1736290241526,-500.0,9.181e-05,2]
[348062674,1736290241535,-689.24,9.181e-05,2]
[348062675,1736290241544,-508.82,9.181e-05,2]
[348062676,1736290241554,-762.82,9.181e-05,2]
[348062677,1736290241564,-500.0,9.181e-05,2]
[348062678,1736290241573,-500.0,9.181e-05,2]
[348062679,1736290241583,-500.0,9.181e-05,2]
[348062680,1736290241599,-191.80746674,9.181e-05,2]
[348062681,1736290241608,-500.0,9.181e-05,2]
[348062682,1736290241618,-500.0,9.181e-05,2]
[348062683,1736290241629,-1030.35,9.181e-05,2]
[348062684,1736290241639,-1081.71,9.181e-05,2]
[348062685,1736290241648,-500.0,9.181e-05,2]
[348062686,1736290241657,-500.0,9.181e-05,2]
[348062687,1736290241666,-500.0,9.181e-05,2]
[348062688,1736290241676,-605.58,9.181e-05,2]
[348062689,1736290241686,-1178.59,9.181e-05,2]
[348062690,1736290241696,-500.0,9.181e-05,2]
[348062691,1736290241706,-500.42362975,9.181e-05,2]
[348062692,1736290241718,-500.0,9.181e-05,2]
[348062693,1736290241728,-500.0,9.181e-05,2]
[348062694,1736290241737,-500.0,9.181e-05,2]
[348062695,1736290241747,-320.01055817,9.181e-05,2]
[348062696,1736290241757,-500.0,9.181e-05,2]
[348062697,1736290241766,-500.0,9.181e-05,2]
[348062698,1736290241776,-1012.53,9.181e-05,2]
[348062699,1736290241786,-1097.58,9.181e-05,2]
[348062700,1736290241795,-500.0,9.181e-05,2]
[348062701,1736290241804,-1137.44,9.181e-05,2]
[348062702,1736290241814,-500.0,9.181e-05,2]
[348062703,1736290241823,-702.02,9.181e-05,2]
[348062704,1736290241833,-567.59924121,9.181e-05,2]
[348062705,1736290241843,-701.45,9.181e-05,2]
[348062706,1736290241853,-500.0,9.181e-05,2]
[348062707,1736290241862,-500.0,9.181e-05,2]
[348062708,1736290241872,-962.96,9.181e-05,2]
[348062709,1736290241882,-500.14453577,9.181e-05,2]
[348062710,1736290241892,-535.53,9.181e-05,2]
[348062711,1736290241901,-500.0,9.181e-05,2]
[348062712,1736290241911,-923.41,9.181e-05,2]
[348062713,1736290241922,-500.0,9.181e-05,2]
[348062714,1736290241932,-500.0,9.181e-05,2]
[348062715,1736290241942,-500.0,9.181e-05,2]
[348062716,1736290241952,-687.69,9.181e-05,2]
[348062717,1736290241962,-500.0,9.181e-05,2]
[348062718,1736290241971,-1097.97,9.181e-05,2]
[348062719,1736290241981,-981.83,9.181e-05,2]
[348062720,1736290241991,-735.48,9.181e-05,2]
[348062721,1736290242000,-500.0,9.181e-05,2]
[348062722,1736290242009,-500.0,9.181e-05,2]
[348062723,1736290242019,-1016.11,9.181e-05,2]
[348062724,1736290242029,-500.0,9.181e-05,2]
[348062725,1736290242039,-1247.62,9.181e-05,2]
[348062726,1736290242048,-701.64,9.181e-05,2]
[348062727,1736290242058,-1347.69,9.181e-05,2]
[348062728,1736290242068,-500.0,9.181e-05,2]
[348062729,1736290242078,-1306.47,9.181e-05,2]
[348062730,1736290242088,-500.0,9.181e-05,2]
[348062731,1736290242097,-500.0,9.181e-05,2]
[348062732,1736290242106,-1214.38,9.181e-05,2]
[348062733,1736290242115,-611.81,9.181e-05,2]
[348062734,1736290242125,-500.0,9.181e-05,2]
[348062735,1736290242135,-815.66,9.181e-05,2]
[348062736,1736290242144,-500.0,9.181e-05,2]
[348062737,1736290242154,-526.7,9.181e-05,2]
[348062738,1736290242163,-494.37335519,9.181e-05,2]
[348062739,1736290242174,-923.53,9.181e-05,2]
[348062740,1736290242183,-505.1995822,9.181e-05,2]
[348062741,1736290242193,-500.0,9.181e-05,2]
[348062742,1736290242204,-500.0,9.181e-05,2]
[348062743,1736290242214,-716.03,9.181e-05,2]
[348062744,1736290242224,-500.0,9.181e-05,2]
[348062745,1736290242234,-500.0,9.181e-05,2]
[348062746,1736290242243,-500.0,9.181e-05,2]
[348062747,1736290242252,-540.44,9.276e-05,2]
[348062748,1736290242263,-6299.49,9.276e-05,2]
[348062749,1736290242273,-3900.82,9.276e-05,2]
[348062750,1736290242284,-808.66,9.276e-05,2]
[348062751,1736290242303,-825.89,9.276e-05,2]
[348062752,1736290242315,-500.0,9.276e-05,2]
[348062753,1736290242325,-1015.49,9.276e-05,2]
[348062754,1736290242336,-1308.48,9.277e-05,2]
[348062755,1736290242351,-1076.68,9.277e-05,2]
[348062756,1736290242361,-1017.82,9.277e-05,2]
[348062757,1736290242371,-1760.53,9.277e-05,2]
[348062758,1736290242380,-1432.635477,9.277e-05,2]
[348062759,1736290242390,-157.965054,9.277e-05,2]
[348062760,1736290242400,-155.733661,9.277e-05,2]
[348062761,1736290242410,-500.0,9.277e-05,2]
[348062762,1736290242420,-1608.66159,9.277e-05,2]
[348062763,1736290242430,-1384.66,9.277e-05,2]
[348062764,1736290242439,-1064.58,9.277e-05,2]
[348062765,1736290242449,-2188.18,9.277e-05,2]
[348062766,1736290242459,-3767.12,9.277e-05,2]
[348062767,1736290242469,-2489.67,9.277e-05,2]
[348062768,1736290242479,-1533.2,9.277e-05,2]
[348062769,1736290242489,-5480.17,9.277e-05,2]
[348062770,1736290242499,-1272.31,9.277e-05,2]
[348062771,1736290242509,-954.75,9.277e-05,2]
[348062772,1736290242519,-1203.87,9.277e-05,2]
[348062773,1736290242529,-500.0,9.277e-05,2]
[348062774,1736290242539,-500.0,9.277e-05,2]
[348062775,1736290242548,-4080.99,9.277e-05,2]
[348062776,1736290242558,-500.0,9.277e-05,2]
[348062777,1736290242568,-1494.79,9.277e-05,2]
[348062778,1736290242578,-1690.35,9.277e-05,2]
[348062779,1736290242587,-1663.51,9.277e-05,2]
[348062780,1736290242597,-2008.34,9.277e-05,2]
[348062781,1736290242607,-1523.36,9.277e-05,2]
[348062782,1736290242617,-1398.98,9.277e-05,2]
[348062783,1736290242626,-609.94,9.277e-05,2]
[348062784,1736290242636,-3256.31,9.277e-05,2]
[348062785,1736290242646,-500.0,9.278e-05,2]
[348062786,1736290242656,-500.0,9.278e-05,2]
[348062787,1736290242666,-500.0,9.278e-05,2]
[348062788,1736290242676,-500.0,9.278e-05,2]
[348062789,1736290242686,-569.03,9.278e-05,2]
[348062790,1736290242696,-500.0,9.278e-05,2]
[348062791,1736290242706,-500.0,9.278e-05,2]
[348062792,1736290242716,-619.27,9.278e-05,2]
[348062793,1736290242725,-500.0,9.278e-05,2]
[348062794,1736290242735,-632.56,9.278e-05,2]
[348062795,1736290242745,-500.0,9.278e-05,2]
[348062796,1736290242755,-500.0,9.278e-05,2]
[348062797,1736290242764,-500.0,9.278e-05,2]
[348062798,1736290242774,-500.0,9.278e-05,2]
[348062799,1736290242784,-500.0,9.278e-05,2]
[348062800,1736290242794,-534.48,9.278e-05,2]
[348062801,1736290242803,-500.0,9.278e-05,2]
[348062802,1736290242813,-466.27616597,9.278e-05,2]
[348062803,1736290242823,-551.42,9.278e-05,2]
[348062804,1736290242833,-500.0,9.278e-05,2]
[348062805,1736290242842,-500.0,9.278e-05,2]
[348062806,1736290242852,-500.0,9.278e-05,2]
[348062807,1736290242862,-500.0,9.278e-05,2]
[348062808,1736290242872,-500.0,9.278e-05,2]
[348062809,1736290242882,-673.43,9.278e-05,2]
[348062810,1736290242892,-500.0,9.278e-05,2]
[348062811,1736290242902,-500.0,9.278e-05,2]
[348062812,1736290242912,-500.0,9.278e-05,2]
[348062813,1736290242922,-958.43,9.278e-05,2]
[348062814,1736290242932,-500.0,9.278e-05,2]
[348062815,1736290242942,-543.11,9.278e-05,2]
[348062816,1736290242952,-500.0,9.278e-05,2]
[348062817,1736290242963,-500.0,9.278e-05,2]
[348062818,1736290242973,-689.56,9.278e-05,2]
[348062819,1736290242983,-182.98,9.278e-05,2]
[348062822,1736290242992,-500.0,9.278e-05,2]
[348062824,1736290243001,-774.32,9.278e-05,2]
[348062826,1736290243011,-500.0,9.278e-05,2]
[348062827,1736290243021,-500.0,9.278e-05,2]
[348062828,1736290243031,-691.31,9.278e-05,2]
[348062829,1736290243041,-500.0,9.278e-05,2]
[348062830,1736290243050,-500.0,9.278e-05,2]
[348062831,1736290243060,-500.0,9.278e-05,2]
[348062832,1736290243070,-500.0,9.278e-05,2]
[348062835,1736290243080,-500.0,9.278e-05,2]
[348062836,1736290243089,-292.34,9.278e-05,2]
[348062837,1736290243097,-500.0,9.278e-05,2]
[348062838,1736290243108,-772.19,9.278e-05,2]
[348062839,1736290243117,-500.0,9.278e-05,2]
[348062841,1736290243126,-500.0,9.278e-05,2]
[348062843,1736290243136,-500.0,9.278e-05,2]
[348062845,1736290243147,-500.0,9.278e-05,2]
[348062848,1736290243156,-500.0,9.278e-05,2]
[348062850,1736290243165,-500.0,9.278e-05,2]
[348062852,1736290243175,-621.31,9.278e-05,2]
[348062853,1736290243185,-500.0,9.278e-05,2]
[348062854,1736290243194,-528.04,9.278e-05,2]
[348062855,1736290243204,-500.0,9.278e-05,2]
[348062856,1736290243213,-737.57,9.278e-05,2]
[348062857,1736290243224,-500.0,9.278e-05,2]
[348062858,1736290243233,-950.49,9.278e-05,2]
[348062859,1736290243243,-500.0,9.278e-05,2]
[348062861,1736290243252,-500.0,9.278e-05,2]
[348062862,1736290243262,-500.0,9.278e-05,2]
[348062863,1736290243271,-500.0,9.278e-05,2]
[348062864,1736290243281,-599.43,9.278e-05,2]
[348062865,1736290243292,-549.76,9.278e-05,2]
[348062866,1736290243301,-500.0,9.278e-05,2]
[348062867,1736290243310,-919.61,9.278e-05,2]
[348062868,1736290243322,-500.0,9.278e-05,2]
[348062869,1736290243332,-500.0,9.278e-05,2]
[348062870,1736290243345,-500.0,9.278e-05,2]
[348062871,1736290243354,-500.0,9.278e-05,2]
[348062872,1736290243365,-500.0,9.278e-05,2]
[348062873,1736290243375,-500.0,9.278e-05,2]
[348062874,1736290243386,-621.11,9.278e-05,2]
[348062875,1736290243395,-1305.48,9.278e-05,2]
[348062876,1736290243405,-500.0,9.278e-05,2]
[348062877,1736290243415,-554.96,9.278e-05,2]
[348062878,1736290243425,-548.01,9.278e-05,2]
[348062879,1736290243435,-628.42,9.278e-05,2]
[348062880,1736290243446,-614.86,9.278e-05,2]
[348062881,1736290243456,-734.14,9.278e-05,2]
[348062882,1736290243465,-500.0,9.278e-05,2]
[348062883,1736290243476,-763.53,9.278e-05,2]
[348062885,1736290243485,-500.0,9.278e-05,2]
[348062887,1736290243494,-564.05,9.278e-05,2]
[348062889,1736290243504,-738.71,9.278e-05,2]
[348062891,1736290243514,-500.0,9.278e-05,2]
[348062893,1736290243523,-500.0,9.278e-05,2]
[348062895,1736290243532,-500.0,9.278e-05,2]
[348062897,1736290243541,-698.98,9.278e-05,2]
[348062899,1736290243550,-500.0,9.278e-05,2]
[348062901,1736290243559,-592.18,9.278e-05,2]
[348062903,1736290243568,-500.0,9.278e-05,2]
[348062905,1736290243578,-654.74,9.278e-05,2]
[348062907,1736290243587,-500.0,9.278e-05,2]
[348062909,1736290243597,-547.02,9.278e-05,2]
[348062911,1736290243606,-500.0,9.278e-05,2]
[348062913,1736290243616,-500.0,9.278e-05,2]
[348062915,1736290243625,-500.0,9.278e-05,2]
[348062918,1736290243634,-500.0,9.278e-05,2]
[348062921,1736290243643,-500.0,9.278e-05,2]
[348062924,1736290243652,-500.0,9.278e-05,2]
[348062927,1736290243662,-500.0,9.278e-05,2]
[348062930,1736290243671,-500.0,9.278e-05,2]
[348062933,1736290243682,-671.03,9.278e-05,2]
[348062935,1736290243691,-500.0,9.278e-05,2]
[348062937,1736290243700,-500.0,9.278e-05,2]
[348062938,1736290243709,-500.0,9.278e-05,2]
[348062941,1736290243719,-500.0,9.278e-05,2]
[348062943,1736290243729,-500.0,9.278e-05,2]
[348062945,1736290243739,-500.0,9.278e-05,2]
[348062947,1736290243749,-663.29,9.278e-05,2]
[348062949,1736290243758,-895.43,9.278e-05,2]
[348062951,1736290243767,-500.0,9.278e-05,2]
[348062953,1736290243776,-500.0,9.278e-05,2]
[348062955,1736290243786,-500.0,9.278e-05,2]
[348062957,1736290243795,-500.0,9.278e-05,2]
[348062959,1736290243805,-500.0,9.278e-05,2]
[348062961,1736290243815,-500.0,9.278e-05,2]
[348062963,1736290243825,-508.79,9.278e-05,2]
[348062965,1736290243834,-500.0,9.278e-05,2]
[348062967,1736290243844,-653.72,9.278e-05,2]
[348062969,1736290243853,-602.66147545,9.278e-05,2]
[348062971,1736290243862,-500.0,9.278e-05,2]
[348062973,1736290243872,-593.7,9.278e-05,2]
[348062975,1736290243882,-500.0,9.278e-05,2]
[348062977,1736290243891,-500.0,9.278e-05,2]
[348062979,1736290243900,-623.39,9.278e-05,2]
[348062998,1736290244071,-1369.89,9.278e-05,2]
[348063000,1736290244081,-510.56,9.278e-05,2]
[348063002,1736290244091,-500.0,9.278e-05,2]